{"text_format":"1","workbook":"xlsx","n_sheets":10,"sheets":["Doc. Chk list","Overview","Credentials","Project Particulars","Sheet1","Training Plan V2","A&M","Financials","FINAL 221","Ref. Doc"],"not_rendered":{"charts":0,"images":3,"macros":1,"external_links":0,"defined_names":1,"comments":0,"pivot_tables":0},"unopened":[],"bounds":{"document_bytes":16777216,"sheet_cells":100000,"rows_first":2000,"rows_last":500,"rows_between":2000,"halvings":0,"cell_chars":16384,"cell_head_chars":4096},"cells_cut":0,"cells_raw":0,"read":"whole","date_system":"1900"}

{"sheet":"Doc. Chk list","index":0,"n_rows":70,"n_cols":3,"rows_kept":70,"cut":false,"hidden":false,"merged":[[20,0,20,2],[6,0,6,1],[5,0,5,2],[38,0,38,3],[69,0,69,2]]}
[]
[]
[]
[]
[]
["Project Application Form for PMKVY 2.0 Special Projects (2016-20)"]
["Initial screening Terms & Conditions of the appraisal process. \nProposals will be filtered out basis the below points"]
[1,"My organisation has not been blacklisted by NSDC"]
[2,"My organisation has not been blacklisted by other ministries of GOI or state government and this has been duly accepted."]
[3,"My organisation is not under bankruptcy proceedings, which come to the notice."]
[4,"I do not have any other reason that would adversely affect the fiduciary capability of the organization duly approved by the competent authority in GOI or the state where such cases must be specifically brought to the notice of the approving authority and recorded in writing."]
[5,"This project application form has been filled as per the instructions, or does contain documents as required."]
[6,"I validate that this proejct application form  doesn’t contains incorrect or misleading information, or information that is different from that provided in supporting documents."]
[7,"I acknowledge that during the proposal's qualitative & quantitative appraisal if any document is asked and is not submitted/clarified within 15 days, the proposal will be rejected. "]
[8,"It is highly recommended that your project falls under the Special Category defined as per the Guidelines to be considered for appraisal. I acknowledge that the proposal falls under Special Category defined as per the Special Projects guidelines, particularly in terms of \"\na) Target Beneficiaries\nb) Training location\nc) Job role outside PMKVY STT\nd) Placement (80% captive or 90% wage) supported by LOIs"]
[9,"I have read all the guidelines with reference to PMKVY. And will comply with all the rules & regulations until or unless any deviation is provided by the Special Projects committee. "]
[]
[]
[]
[]
["Mandatory Document Checklist"]
["S.No","Document Checklist","Status"]
[1,"Company Pan Card","Select"]
[2,"Company Registration Certificate","Select"]
["*3","IF NSDC Partnership (by loan or equity) : Copy of agreement ","Select"]
[4,"CA Certificate for last 3 Financial Years","Select"]
[4.0999999999999996,"Complete Balance Sheet for last 3 Financial Years","Select"]
[4.2,"Profit & Loss for last 3 Financial Years","Select"]
[4.3,"Copy of IT Return for last 3 Financial Years","Select"]
["*5","Sanction Orders of previously executed skilling projects","Select"]
["*5.1","Project closure certificate of closed skill projects","Select"]
["*5.2","Testimonials","Select"]
["*5.3","Declaration (on company letter head) mentioning Target allocated, trained, certified & placed cadidates as per SDMS record (as on date)","Select"]
[6,"About the organisation (1-2 pages)","Select"]
[7,"Profiles of investors & Promoters with contact details. In a Letter from company Secretary/CA. (Highlighting their track record of having founded or invested in successful organizations)","Select"]
[8,"CVs of top management team.(Highlighting their credentials in terms of leading successful organization and their experience in the Skill sector)","Select"]
[9,"Placement Tie-up documents (Highlighting Job role, Job Location, CTC & career growth) Please ensure that the total numbers of candidates to be placed is specifyed clearly in the Tie-up letters along with the date & validity of the LOI","Select"]
[10,"If the project is initiated by any Govt. Entity then a valid association document (MOU/Noc) is required.","Select"]
["NOTE: All documents (excluding * marked) in the check list are mandatory,if not submitted PAF will not be accepted."]
[]
[]
[]
[]
[]
[]
[]
[]
[]
[]
[]
[]
[]
[]
[]
[]
[]
[]
[]
[]
[]
[]
[]
[]
[]
[]
[]
[]
[]
[]
["NSDC will only consider job roles which are NSQC approved and next review date (mentioned in the job role) hasn't expired. \nJob roles should  remain active throughout the life cycle of the project"]

{"sheet":"Overview","index":1,"n_rows":31,"n_cols":2,"rows_kept":31,"cut":false,"hidden":false,"merged":[[28,0,30,0],[24,0,26,0],[16,0,18,0],[20,0,22,0],[0,0,2,0],[8,0,10,0],[12,0,14,0],[4,0,6,0]]}
[1,"Project Summary (Mandatory)"]
[null," Please provide a brief summary of the project (in not more than 300 words)"]
[null,"Write here…."]
[]
[2,"Why Special Project (Mandatory)"]
[null,"Briefly discribe why is the need for Special Project and quote the Special Project Guideline (Refer Point 2.1 Page 2 ) to make your project Qualified for \"Special Project\" :"]
[null,"Write Here…"]
[]
[3,"Need for Special Project (Mandatory)"]
[null,"a) Brief on the issue (you are encouraged to submit relevant documents to support this point)\nb) How would this training address the above issue and help the candidates & society / district"]
[null,"a) Write Here…\nb) Write Here…"]
[]
[4,"Target Beneficiaries (Mandatory)"]
[null,"Briefly describe on\na) how this section of population has been identified\nb) people who will benefit from the program and  e.g. (training to unemployed youth, drop out, women from marginalized sections)\nc) percentage distribution of Target beneficiaries \nd) you are encouraged to submit relevant documents to support above points"]
[null,"a) Write Here…\nb) Write Here…\nc) Write Here…\nd) Write Here…"]
[]
[5,"Detailed Strategy for Self Employment job role wise (Mandatory)"]
[null,"Briefly explain \na) how training under identified job role will give financial growth to candidates\nb) detailed structure of micro financing and Mudra / any other Loan, funding to be provided to the candidates : if YES; relevant documents/letter to be attached\nc) if market linkage is provided to the candndiate; relevant letter to be submitted.  Specify SPIA role in providing Market Linkages\nd) what all documents SPIA will be submitting to support the above points. Please mention "]
[null,"a) Write Here…\nb) Write Here…\nc) Write Here…\nd) Write Here…"]
[]
[6,"Detailed Mobilization Strategy (Mandatory)"]
[null,"please explain how & where will you be mobilizing candidates for the trainning e.g. will you be counducting kaushal mela, higher a mobilization agency , print media or other"]
[null,"Write Here…"]
[]
[7,"Survey  (Mandatory)"]
[null,"Details of Survey conducted by SPIA and/or 3rd party\na) determining the training need \nb) sample size \nc) when was the survey conducted & duration of the survey \nd) finding of the survey\ne) other details (sample of candidate name, mobile no, district, state)"]
[null,"a) Write Here…\nb) Write Here…\nc) Write Here…\nd) Write Here…\ne) Write Here…"]
[]
[8,"If a project is initiated by any govt. body (eg. State Police, Prison, Juvenile Board, etc) (Mandatory)"]
[null,"a) Name of the Govt Entity\nb) Brief of the MOU/Noc/Any association Document with the Govt. entity\nc) Detailed roles & responsibility of Govt. and PIA (in terms of Mobilsation, Infrastructure, Training, Resources, Equipment, Admin, Placement, Monitoring, etc)"]
[null,"a) Write Here…\nb) Write Here…\nc) Write Here…"]

{"sheet":"Credentials","index":2,"n_rows":66,"n_cols":13,"rows_kept":66,"cut":false,"hidden":false,"merged":[[47,2,47,3],[44,2,44,3],[48,2,48,3],[49,2,49,3],[52,1,52,9],[45,2,45,3],[46,2,46,3],[39,0,39,3],[40,2,40,3],[43,2,43,3],[36,2,36,3],[37,2,37,3],[38,2,38,3],[41,2,41,3],[42,2,42,3],[18,2,18,3],[19,2,19,3],[20,2,20,3],[21,2,21,3],[14,2,14,3],[17,2,17,3],[0,0,0,2],[15,2,15,3],[9,2,9,3],[16,0,16,3],[10,0,10,3],[2,0,2,3],[8,2,8,3],[11,2,11,3],[12,2,12,3],[13,2,13,3],[3,2,3,3],[4,2,4,3],[5,2,5,3],[6,2,6,3],[7,2,7,3],[22,0,22,3],[58,0,59,0],[50,1,50,2],[23,2,23,3],[24,2,24,3],[25,2,25,3],[26,2,26,3],[27,2,27,3],[28,2,28,3],[29,2,29,3],[30,2,30,3],[31,2,31,3],[32,2,32,3],[33,2,33,3],[34,2,34,3],[35,2,35,3]]}
["Company Credentials"]
[]
["1. Organization Details"]
[1,"Name of Organization"]
[1.1000000000000001,"Pan No."]
[1.2,"Website URL"]
[1.3,"Act under which registered"]
[1.4,"Date of Incorporation"]
[1.5,"State where registered"]
[1.6,"Incorporation Certificate Number"]
["Head Office Address"]
[2,"Complete Address"]
[2.1,"City"]
[2.2000000000000002,"State/UT"]
[2.2999999999999998,"PIN Code"]
[2.4,"Office Landline Number"]
["NCR Office Address (If Any)"]
[2.5,"Complete Address"]
[2.6,"City"]
[2.7,"State/UT"]
[2.8,"PIN Code"]
[2.9,"Office Landline Number"]
["Organization Member Details"]
["3.0.1","Name (Management represntative)"]
["3.0.2","Designation"]
["3.0.3","Contact – Mobile No"]
["3.0.4","Email ID"]
["3.0.5","Aadhar/Voter No."]
["3.0.6","Location :"]
["3.0.7","Highest Qualification : "]
["3.0.8","Brief Profile :"]
["3.1.1","Name (SPOC : For all proposal related communication)\nPreferably from NCR region"]
["3.1.2","Designation"]
["3.1.3","Contact – Mobile No"]
["3.1.4","Email ID"]
["3.1.5","Aadhar/Voter No."]
["3.1.6","Location :"]
["3.1.7","Highest Qualification : "]
["3.1.8","Brief Profile :"]
["Promoter Profile"]
["3.2.1","Promoting Organisation :"]
["3.2.2","Promoter Name : "]
["3.2.3","Designation : "]
["3.2.4","Highest Qualification : "]
["3.2.5","Brief Profile :"]
["3.2.6","Mobile No"]
["3.2.7","Email ID"]
["3.2.8","Location :"]
["3.2.9","Any awards/ recognition"]
[]
[4,"NSDC Partnership (by loan or equity) at the time of application"]
[]
[null,"Financial Details"]
[5,"Financial Year","Annual Turnover (INR)","Annual Turnover from Skilling (INR)","Name of the CA Firm","Name of CA","CA membership  No.","IT Returns Filed","ITR Acknowledgement Number","Audit/Non-audit"]
[5.0999999999999996,"2015-16"]
[5.2,"2016-17"]
[5.3,"2017-18"]
[]
[6,"Previous Skill / Training Experience Details"]
[null,"5.1 Summary of Closed/ Foreclosed/Ongoing projects [Only last 5 years projects from the date of application  would be considered]"]
[null,"Project name","Name of client","Contract no./ Work Order No","Date of Sanction","Training\nTarget","Total Trained","Sector","Job Role","Total Placed","Project Status","Project Closure Date","Testimonial Letter attached"]
[6.1,null,null,null,null,null,null,null,null,null,null,null,"Yes / no"]
[6.2]
[6.3]
["n"]
["n+1"]

{"sheet":"Project Particulars","index":3,"n_rows":32,"n_cols":11,"rows_kept":32,"cut":false,"hidden":false,"merged":[[22,4,22,7],[22,0,22,2],[3,0,3,2],[0,0,0,3],[1,1,1,2],[16,1,16,2],[17,1,17,2],[18,1,18,2],[19,1,19,2],[20,1,20,2]]}
["Project Application Form"]
[1.1000000000000001,"Proposed Target(No.of candidates)"]
[]
["Job Role Wise Target & Location"]
["S.No","QP Code","Job Role - Name","State ","District","Target in Number"]
[1]
[2]
[3]
[4]
[5]
[6]
[7]
["n"]
["n+1"]
[]
[]
[14,"Total Placement Proposed"]
[14.1,"Whether Captive Placement Proposed (Yes/No)"]
[14.2,"No. of candidates proposed for captive placement"]
[14.3,"Min. Salary proposed for captive placement "]
[14.4,"Whether Overseas Placement Proposed (Yes/No)"]
[]
["Do you have potential employer tie-up?*",null,null,null,"Required for Validation"]
["SN","Country Of Employment","State Of Employment","District Of Employment","Name of Employer\nOrginazation","Recruiter / HR Name & Designation","Mobile No","Official E-mail ID","Validity of LOI\n(Date)","Proposed Number of Placement","Gross Salary in INR"]
[1]
[2]
[3]
[4]
[5]
[6]
["n"]
["n+1"]

{"sheet":"Sheet1","index":4,"n_rows":27,"n_cols":8,"rows_kept":27,"cut":false,"hidden":true,"merged":[]}
["Select Dropdown","Select Dropdown","Select Dropdown","Select Dropdown","Select Dropdown"]
[10,"Class Room 1","Select","Select",1,"Lab 1","Select"]
[11,"Class Room 2","Owned","Already Accredated",2,"Lab 2","Not Submitted","Select"]
[12,"Class Room 3","Franchise","To be Accredated",3,"Lab 3","Submitted","Submitted"]
[13,"Class Room 4","Rented",null,4,"Lab 4",null,"Not Applicable"]
[14,"Class Room 5","Govt. Center",null,5,"Lab 5"]
[15,"Class Room 6","To be identified",null,6,"Lab 6"]
[16,"Class Room 7",null,null,null,"Lab 7"]
[17,"Class Room 8",null,null,null,"Lab 8"]
[18,"Class Room 9",null,null,null,"Lab 9"]
[19,"Class Room 10",null,null,null,"Lab 10"]
[20,"Class Room 11",null,null,null,"Lab 11"]
[21,"Class Room 12",null,null,null,"Lab 12"]
[22,"Class Room 13",null,null,null,"Lab 13"]
[23,"Class Room 14",null,null,null,"Lab 14"]
[24,"Class Room 15",null,null,null,"Lab 15"]
[25,"Class Room 16",null,null,null,"Lab 16"]
[26,"Class Room 17",null,null,null,"Lab 17"]
[27,"Class Room 18",null,null,null,"Lab 18"]
[28,"Class Room 19",null,null,null,"Lab 19"]
[29,"Class Room 20",null,null,null,"Lab 20"]
[30]
[]
[]
[]
[]
[null,"a) Write Here…\nb) Write Here…\nc) Write Here…\nd) Write Here…\ne) Write Here…"]

{"sheet":"Training Plan V2","index":5,"n_rows":35,"n_cols":9,"rows_kept":35,"cut":false,"hidden":false,"merged":[[0,1,0,8]]}
[null,"Note: \n - Above data is required to identify the capacity of the center. SPIA to enter the details as mentioned in the sheet\n- Classroom and/or Lab under 200 Sq. Ft. will not be eligible for target\n- Where SPIA hasn't identified the center; capacity will be given considering 1 classroom, 1 lab, 1 job role, 1 trainer & 2 batches in a day of 4 hrs each"]
[]
["SN","Training Center Particulars","TC - 1","TC - 2","TC - 3","TC - 4","TC - 5","TC - n","TC - n+1"]
[1,"Training Center Type","Select","Select","Select","Select","Select","Select","Select"]
[2,"Training Center Accreditation status","Select","Select","Select","Select","Select","Select","Select"]
[3,"TCID if already on SMART"]
[4,"Training Center Address","Write Here..","Write Here..","Write Here..","Write Here..","Write Here..","Write Here..","Write Here.."]
[5,"State"]
[6,"Number of Classrooms"]
[7,"Number of Labs"]
[8,"District"]
[9,"No of Job roles to be implemeted in a center"]
[10.1,"QP Code"]
[10.199999999999999,"Training Hrs"]
[10.3,"No. of qualified Trainers"]
[10.4,"Size of Classroom \n(sq ft)"]
[10.5,"Size of Lab \n(sq ft)"]
[10.6,"No.of Batches in a day"]
[10.7,"Sitting Capacity"]
[11.1,"QP Code"]
[11.2,"Training Hrs"]
[11.3,"No. of qualified Trainers"]
[11.4,"Size of Classroom \n(sq ft)"]
[11.5,"Size of Lab \n(sq ft)"]
[11.6,"No.of Batches in a day"]
[11.7,"Sitting Capacity"]
["n.1","QP Code"]
["n.1+1","Training Hrs"]
["n.1+2","No. of qualified Trainers"]
["n.1+3","Size of Classroom \n(sq ft)"]
["n.1+4","Size of Lab \n(sq ft)"]
["n.1+5","No.of Batches in a day"]
["n.1+6","Sitting Capacity"]
["n.1+7","No.of months  required for completing 1 cycle "]
["n.1+8","Total Target (12)months"]

{"sheet":"A&M","index":6,"n_rows":28,"n_cols":10,"rows_kept":28,"cut":false,"hidden":false,"merged":[[0,0,0,3],[2,0,2,7]]}
["Project Duration in Months"]
[]
["Project Approach & Methodology (Project start date = +2 months after project submission)"]
["S.No","Location","Class Room ","QP Code","Batch Start date","Batch End date","Training Hrs Start","Training Hrs End","Training Hrs","No.of Candidates"]
[1]
[2]
[3]
[4]
[5]
[6]
[7]
[8]
[9]
[10]
[11]
[12]
[13]
[14]
[15]
[16]
[17]
[18]
[19]
[20]
[21]
[22]
["n"]
["n+1"]

{"sheet":"Financials","index":7,"n_rows":12,"n_cols":5,"rows_kept":12,"cut":false,"hidden":false,"merged":[[1,0,1,4],[0,0,0,4]]}
["Project Financials"]
["Please provide with the expected cost for the project in front of various cost heads below; \nPlease add cost sub heads as per your requirement. "]
[]
[]
["S. no.","Expense Head","Per Candidate Cost/INR","No. of Candidates","Total Cost"]
[1.1000000000000001,null,null,null,{"$f":"C6*D6","v":0}]
[1.2,null,null,null,{"$f":"C7*D7","v":0}]
[1.3,null,null,null,0]
[".",null,null,null,0]
[".",null,null,null,0]
["n+1",null,null,null,0]
[null,"Total Project Cost",{"$f":"SUM(C6:C12)","v":0},{"$f":"SUM(D6:D12)","v":0},0]

{"sheet":"FINAL 221","index":8,"n_rows":223,"n_cols":25,"rows_kept":223,"cut":false,"hidden":true,"merged":[[227,14,227,16],[174,20,182,20],[174,21,182,21]]}
["S.No","QP Code","SSC","Job Role/QP Name","NSQF Level ","Theory","Practical","Additional Duration: Entrepreneurship and Softskills","Additional Duration: Digital Literacy - Not to be counted in total hours - trainee will undergo this on his/her own via online - available in English and Regional Languages at indiaskilsonline.com","Training Duration (excluding Digital Literacy)","Content  Available","Common Norms Category","Classification -                  A: Regular Classroom & lab                                                    C: High Capex ","Training involving Hi capex ","Manufacturing / Service","Technical / Non-Technical","Industry visit/OJT -Not applicable (NA)",null,null,null,null,null,null,null,"Agriculture"]
[null,"Select QP",0,0,0,0,0,0,0,"Select QP",0,0,0,0,0,0,0]
[1,"AGR/Q4804","Agriculture","Animal Health Worker",3,120,180,40,20,{"$f":"SUM(F3:H3)","v":340},"Yes","I","A",null,"Service ","Non-Technical",8,"Already Accredated","I",42.4,null,"X",300,null,"Apparel, Madeups & Home Furnishing"]
[2,"AGR/Q4904","Agriculture","Aquaculture worker",3,80,120,40,20,240,"Yes","I","A",null,"Service ","Non-Technical",8,"Can be Accredated","II",36.299999999999997,null,"Y",250,null,"Automotive "]
[3,"AGR/Q1003","Agriculture","Green House Operator",3,90,110,40,20,240,"Yes","I","C","At site ","Manufacturing","Technical",8,"Cant be Accredated","III",28.9,null,"Z",200,null,"Automotvie"]
[4,"AGR/Q4101","Agriculture","Dairy Farmer/ Entrepreneur",4,80,120,40,20,240,"Yes","I","A",null,"Service ","Non-Technical",8,null,0,0,null,0,0,null,"Beauty and Wellness"]
[5,"AGR/Q1101","Agriculture","Tractor operator ",4,88,112,40,20,240,"Yes","I","A",null,"Manufacturing","Technical",8,null,null,null,null,null,null,null,"BFSI"]
[6,"AGR/Q0801","Agriculture","Gardener",4,130,170,40,20,340,"Yes","II","A",null,"Service ","Non-Technical",8,"Within 221",null,null,null,null,null,null,"Capital Goods"]
[7,"AGR/Q1002","Agriculture","Micro Irrigation Technician",4,80,120,40,20,240,"Yes","I","A",null,"Manufacturing","Technical",8,"Outside 221, Within 1800",null,null,null,null,null,null,"Construction"]
[8,"AGR/Q1201","Agriculture","Organic grower",4,80,120,40,20,240,"Yes","II","A",null,"Service ","Non-Technical",8,"Outside 1800/New Job  role",null,null,null,null,null,null,"Domestic Workers"]
[9,"AGR/Q7101","Agriculture","Quality Seed Grower",4,90,110,40,20,240,"Yes","II","A",null,"Service ","Non-Technical",8,null,null,null,null,null,null,null,"Earthmoving & Infrastructure Building"]
[10,"AGR/Q4306","Agriculture","Small poultry farmer",4,100,140,40,20,280,"Yes","II","A",null,"Service ","Non-Technical",8,null,null,null,null,null,null,null,"Electronics & Hardware "]
[11,"AMH/Q0102","Apparel, Madeups & Home Furnishing","In-line Checker",3,85,185,40,20,310,"Yes","I","A ","NA","Manufacturing","Technical",4,null,null,null,null,null,null,null,"Food Processing"]
[12,"AMH/Q1407","Apparel, Madeups & Home Furnishing","Packer",3,60,120,40,20,220,"Yes","I","A","NA","Manufacturing","Technical",4,null,null,null,null,null,null,null,"Furniture & Fittings"]
[13,"AMH/Q0301","Apparel, Madeups & Home Furnishing","Sewing Machine Operator",4,80,190,40,20,310,"Yes","I","A","NA","Manufacturing","Technical",4,null,null,null,null,null,null,null,"Gems and Jewellery"]
[14,"AMH/Q0305","Apparel, Madeups & Home Furnishing","Sewing Machine Operator - knits",4,90,210,40,20,340,"Yes","I","A","NA","Manufacturing","Technical",4,null,null,null,null,null,null,null,"Green Jobs"]
[15,"AMH/Q1947","Apparel, Madeups & Home Furnishing","Self Employed Tailor",4,80,260,40,20,380,"Yes","I","A","NA","Manufacturing","Technical",4,null,null,null,null,null,null,null,"Handicrafts"]
[16,"AMH/Q1601","Apparel, Madeups & Home Furnishing","Export Assistant",4,90,180,40,20,310,"Yes","I","A","NA","Manufacturing","Technical",4,null,null,null,null,null,null,null,"Healthcare"]
[17,"AMH/Q1001","Apparel, Madeups & Home Furnishing","Hand Embroiderer",4,60,140,40,20,240,"Yes","I","A","NA","Manufacturing","Technical",4,null,null,null,null,null,null,null,"Iron and Steel"]
[18,"AMH/Q0401","Apparel, Madeups & Home Furnishing","Pressman",4,85,185,40,20,310,"Yes","I","A","NA","Manufacturing","Technical",4,null,null,null,null,null,null,null,"IT/ITes"]
[19,"AMH/Q1810","Apparel, Madeups & Home Furnishing","Washing Machine Operator",4,90,210,40,20,340,"Yes","I","A","NA","Manufacturing","Technical",4,null,null,null,null,null,null,null,"Leather"]
[20,"ASC/Q3509","Automotive ","Machining and Quality Technician",3,175,300,40,20,515,"Yes ","I","C","NA","Manufacturing","Technical",40,null,null,null,null,null,null,null,"Life Sciences"]
[21,"ASC/Q3109","Automotive ","Welding and Quality Technician",3,175,300,40,20,515,"Yes ","I","C","NA","Manufacturing","Technical",40,null,null,null,null,null,null,null,"Logistics"]
[22,"ASC/Q1011","Automotive ","Dealership Telecaller Sales Executive",4,150,350,40,20,540,"Yes ","II","A","NA","Manufacturing","Non-Technical",50,null,null,null,null,null,null,null,"Media & Entertainment "]
[23,"ASC/Q1012","Automotive ","Dealership Sales and Value Aadded Services Executive",4,175,300,40,20,515,"Yes ","II","A","NA","Manufacturing","Non-Technical",50,null,null,null,null,null,null,null,"Mining"]
[24,"ASC/Q1111","Automotive ","Showroom Hostess - Customer Relationship Executive",4,175,275,40,20,490,"Yes ","II","A","NA","Manufacturing","Non-Technical",75,null,null,null,null,null,null,null,"Paints & Coatings "]
[25,"ASC/Q1411","Automotive ","Automotive Service Technician (Two and Three Wheelers)",4,175,275,40,20,490,"Yes ","I","C","NA","Manufacturing","Technical",50,null,null,null,null,null,null,null,"People with Disability"]
[26,"ASC/Q1417","Automotive ","Car Washer and Assistant Service Technician ",3,175,275,40,20,490,"Yes ","I","C","NA","Manufacturing","Technical",50,null,null,null,null,null,null,null,"Plumbing"]
[27,"ASC/Q9714","Automotive ","Chauffeur / Taxi Driver",4,160,240,40,20,440,"Yes ","I","C","NA","Manufacturing","Technical",100,null,null,null,null,null,null,null,"Power"]
[28,"ACS/Q9719","Automotive ","Auto / E Rickshaw Driver & Service Technician ",4,200,300,40,20,540,"Yes ","I","C","NA","Manufacturing","Technical",120,null,null,null,null,null,null,null,"Retail"]
[29,"ASC/Q9703","Automotvie","Commercial Vehicle Driver Level 4",4,160,240,40,20,400,"Yes ","I","C","NA","Manufacturing ","Technical",100,null,null,null,null,null,null,null,"Rubber"]
[30,"BWS/Q0101","Beauty and Wellness","Assistant Beauty Therapist",3,50,200,40,20,{"$f":"SUM(F32:H32)","v":290},"Yes","II","A","NA","Service ","Technical ",24,null,null,null,null,null,null,null,"Security"]
[31,"BWS/Q0201","Beauty and Wellness","Assistant Hair Stylist",3,50,250,40,20,340,"Yes","II","A","NA","Service ","Technical ",32,null,null,null,null,null,null,null,"Sports"]
[32,"BWS/Q0401","Beauty and Wellness","Assistant Nail Technician",3,30,170,40,20,240,"Yes","II","A","NA","Manufacturing","Non-Technical",32,null,null,null,null,null,null,null,"Telecom"]
[33,"BWS/Q1001 ","Beauty and Wellness","Assistant Spa Therapist",3,50,250,40,20,340,"Yes","II","A","NA","Manufacturing","Non-Technical",40,null,null,null,null,null,null,null,"Textiles & Handloom"]
[34,"BWS/Q0402","Beauty and Wellness","Pedicurist & Manicurist",3,30,220,40,20,290,"Yes","II","A","NA","Manufacturing","Non-Technical",24,null,null,null,null,null,null,null,"Tourism and Hospitality"]
[35,"BWS/Q0102","Beauty and Wellness","Beauty Therapist",4,50,300,40,20,390,"Yes","II","A","NA","Manufacturing","Technical",40]
[36,"BWS/Q0202","Beauty and Wellness","Hair Stylist",4,75,275,40,20,390,"Yes","II","A","NA","Manufacturing","Technical",48]
[37,"BSC/Q0301","BFSI","Business Correspondence & Business Facilitator",3,30,120,40,20,190,"Yes","III","A","NA","Service","Non-Technical",8]
[38,"BSC/Q0901","BFSI","Accounts Executive - Accounts Payable and Receivable",4,30,120,40,20,190,"Yes","III","A","NA","Service","Non-Technical",16]
[39,"BSC/Q0601","BFSI","Mutual Fund Agent ",4,40,160,40,20,240,"Yes","III","A","NA","Service","Non-Technical",8]
[40,"BSC/Q0101","BFSI","Life Insurance Agent ",4,50,175,40,20,265,"Yes","III","A","NA","Service","Non-Technical",8]
[41,"BSC/Q0701","BFSI","Debt Recovery Agent",4,30,130,40,20,200,"Yes","III","A","NA","Service","Non-Technical",8]
[42,"BSC/Q0201","BFSI","Equity Dealer",4,30,130,40,20,200,"Yes","III","A","NA","Service","Non-Technical",16]
[43,"CSC/Q0204+D16","Capital Goods","Manual Metal Arc Welding/ Shielded Metal Arc Welding Welder",3,150,350,40,20,540,"Yes","I","A","NA","Manufacturing","Technical",16]
[44,"CSC/Q0305","Capital Goods","Fitter – Electrical and Electronic Assembly",3,150,350,40,20,540,"Yes","I","A","NA","Manufacturing","Technical",16]
[45,"CSC/Q0304","Capital Goods","Fitter Mechanical Assembly",3,150,350,40,20,540,"Yes","I","A","NA","Manufacturing","Technical",16]
[46,"CSC/Q0115","Capital Goods","CNC Operator Turning",3,140,260,40,20,440,"Yes","I","A","NA","Manufacturing","Technical",16]
[47,"CSC/Q0402","Capital Goods","Draughtsman – Mechanical",4,100,300,40,20,440,"Yes","I","A","NA","Manufacturing","Technical",16]
[48,"CSC/Q0303","Capital Goods","Fitter Fabrication",3,140,360,40,20,540,"Yes","I","A","NA","Manufacturing","Technical",16]
[49,"CON/Q0602","Construction","Assistant Electrician ",3,110,290,40,20,440,"Yes","I","A","NA","Manufacturing","Technical",120]
[50,"CON/Q0203","Construction","Bar Bender and Steel Fixer ",4,80,320,40,20,440,"Yes","I","A","NA","Manufacturing","Technical",120]
[51,"CON/Q0103","Construction","Mason General ",4,80,320,40,20,440,"Yes","I","A","NA","Manufacturing","Technical",120]
[52,"CON/Q0503","Construction","Construction Painter & Decorator",3,80,320,40,20,440,"Yes","I","A","NA","Manufacturing","Technical",120]
[53,"CON/Q0104","Construction","Mason Tiling ",4,90,310,40,20,440,"Yes","I","A","NA","Manufacturing","Technical",120]
[54,"CON/Q0105","Construction","Mason Concrete ",3,80,320,40,20,440,"Yes","I","A","NA","Manufacturing","Technical",120]
[55,"CON/Q0304","Construction","Shuttering Carpenter - System ",4,80,320,40,20,440,"Yes","I","A","NA","Manufacturing","Technical",120]
[56,"DWC/Q0201","Domestic Workers","Child Caretaker",3,80,120,40,20,240,"Yes","II","A","NA","Service","Non-Technical",30]
[57,"DWC/Q0801","Domestic Workers","Elderly Caretaker (Non-Clinical)",3,80,120,40,20,240,"Yes","II","A","NA","Service","Non-Technical",30]
[58,"DWC/Q0102","Domestic Workers","General Housekeeper",3,80,120,40,20,240,"Yes","II","A","NA","Service","Non-Technical",30]
[59,"DWC/Q0101","Domestic Workers","Housekeeper cum cook",3,100,150,40,20,290,"Yes","I","A","NA","Service","Technical",40]
[60,"IES/Q0117","Earthmoving & Infrastructure Building","Junior Batching Plant Operator",3,40,110,40,20,190,"Yes","I","C","At site ","Manufacturing","Technical",20]
[61,"IES/Q0119","Earthmoving & Infrastructure Building","Junior Transit Mixer Operator",3,40,110,40,20,190,"Yes","I","C","At site ","Manufacturing","Technical",20]
[62,"IES/Q0102","Earthmoving & Infrastructure Building","Junior Backhoe Operator",3,40,110,40,20,{"$f":"SUM(F64:H64)","v":190},"Yes","I","C","NA","Manufacturing","Technical",16]
[63,"IES/Q0104","Earthmoving & Infrastructure Building","Junior Excavator Operator",3,60,110,40,20,210,"Yes","I","C","NA","Manufacturing","Technical",16]
[64,"IES/Q0111","Earthmoving & Infrastructure Building","Junior Operator Crane",3,40,110,40,20,190,"Yes","I","C","NA","Manufacturing","Technical",16]
[65,"IES/Q1102","Earthmoving & Infrastructure Building","Junior Mechanic - Engine",3,50,110,40,20,200,"Yes","I","C","NA","Manufacturing","Technical",16]
[66,"IES/Q1104","Earthmoving & Infrastructure Building","Junior Mechanic- Hydraulics",3,50,110,40,20,200,"Yes","I","C","NA","Manufacturing","Technical",16]
[67,"IES/Q1106","Earthmoving & Infrastructure Building","Junior Mechanic – Elec/Electronics/ Instruments",3,50,110,40,20,200,"Yes","I","C","NA","Manufacturing","Technical",16]
[68,"IES/Q0101","Earthmoving & Infrastructure Building","Backhoe Loader Operator",4,60,150,40,20,250,"Yes","I","C","NA","Manufacturing","Technical",16]
[69,"IES/Q0103","Earthmoving & Infrastructure Building","Excavator Operator",4,60,150,40,20,250,"Yes","I","C","NA","Manufacturing","Technical",16]
[70,"ELE/Q8101","Electronics & Hardware ","DTH Set Top Box Installation & Service Technician",4,120,180,40,20,340,"Yes","I","A","NA","Manufacturing","Technical",24]
[71,"ELE/Q4601","Electronics & Hardware ","Field Technician – Computing and Peripherals",4,120,180,40,20,340,"Yes"," I","A","NA","Service","Technical",40]
[72,"ELE/Q4605","Electronics & Hardware ","CCTV Installation Technician",4,180,180,40,20,400,"Yes"," I","A","NA","Manufacturing","Technical",40]
[73,"ELE/Q5901","Electronics & Hardware ","Solar Panel Installation Technician",4,200,200,40,20,440,"Yes"," I","A","NA","Manufacturing","Technical",80]
[74,"ELE/Q9302","Electronics & Hardware ","LED Light Repair Technician",4,180,180,40,20,400,"Yes"," I","A","NA","Service","Technical",40]
[75,"ELE/Q8104","Electronics & Hardware ","Mobile Phone Hardware Repair Technician",4,180,180,40,20,400,"Yes"," I","A","NA","Service","Technical",40]
[76,"ELE/Q4606","Electronics & Hardware ","Field Technician – Networking and Storage",4,180,180,40,20,400,"Yes"," I","A","NA","Service","Technical",40]
[77,"ELE/Q3104","Electronics & Hardware ","Field Technician – Other Home Appliances",4,180,180,40,20,400,"Yes"," I","A","NA","Manufacturing","Technical",80]
[78,"ELE/Q3101","Electronics & Hardware ","TV Repair Technician",4,180,180,40,20,400,"Yes"," I","A","NA","Service","Technical",40]
[79,"FIC/Q0102","Food Processing","Pickle Making Technician",4,90,150,40,20,280,"Yes"," I","A","NA","Manufacturing","Technical",20]
[80,"FIC/Q0103","Food Processing","Jam Jelly & Ketchup Processing  Technician",4,90,150,40,20,280,"Yes"," I","A","NA","Manufacturing","Technical",40]
[81,"FIC/Q5002","Food Processing","Craft Baker",4,90,150,40,20,280,"Yes"," I","A","NA","Manufacturing","Technical",50]
[82,"FIC/Q5005","Food Processing","Baking Technician",4,90,150,40,20,280,"Yes"," I","A","NA","Manufacturing","Technical",30]
[83,"FIC/Q5003","Food Processing","Plant Biscuit Production Specialist",4,90,150,40,20,280,"Yes"," I","A","NA","Manufacturing","Technical",30]
[84,"FFS/Q0102","Furniture & Fittings","Carpenter - Wooden Furniture",4,136,172,40,20,348,"Yes","II","A","NA","Manufacturing","technical",40]
[85,"FFS/Q5702","Furniture & Fittings","Fitter-Modular Furniture",4,120,180,40,20,340,"Yes","II","A","NA","Manufacturing","technical",40]
[86,"G&J/Q6802","Gems and Jewellery","Jewellery Retail - Jewellery Retail Sales Associate",4,65,85,40,20,190,"Yes","II","A","NA","Service","Non-Technical",30]
[87,"G&J/Q2301","Gems and Jewellery","Cast and diamonds-set jewellery - Hand Sketch Designer (Basic)",3,24,126,40,20,190,"Yes","I","A","NA","Manufacturing","Technical","NA"]
[88,"G&J/Q2303","Gems and Jewellery","Cast and diamonds-set jewellery - CAD Operator",4,24,216,40,20,280,"Yes","I","A","NA","Manufacturing","Technical","NA"]
[89,"G&J/Q3603","Gems and Jewellery","Diamond Processing - Assorter (Advanced)",4,24,126,40,20,190,"Yes","I","A","NA","Manufacturing","Technical","NA"]
[90,"G&J/Q0603","Gems and Jewellery","Handmade Gold and Gems-set Jewellery - Goldsmith - Components",3,24,126,40,20,190,"Yes","I","A","NA","Manufacturing","Technical","NA"]
[91,"G&J/Q0604","Gems and Jewellery","Handmade Gold and Gems-set Jewellery - Goldsmith - Frame",4,24,126,40,20,190,"Yes","I","A","NA","Manufacturing","Technical","NA"]
[92,"G&J/Q0701","Gems and Jewellery","Handmade Gold and Gems-set Jewellery - Polisher and Cleaner",3,24,126,40,20,190,"Yes","I","A","NA","Manufacturing","Technical","NA"]
[93,"G&J/Q1701","Gems and Jewellery","Cast & Diamonds Set Jewellery - Wax Setter",3,24,126,40,20,190,"Yes","I","A","NA","Manufacturing","Technical","NA"]
[94,"G&J/Q3601","Gems and Jewellery","Diamond Processing - Assorter (Basic)",3,24,126,40,20,{"$f":"SUM(F96:H96)","v":190},"Yes","I","A","NA","Manufacturing","Technical","NA"]
[95,"SGJ/Q6602","Green Jobs","Wastewater Treatment Plant Helper",3,50,110,40,20,200,"Yes","III","A & B","NA","Manufacturing","Technical ",110]
[96,"SGJ/Q0101","Green Jobs","Solar PV Installer (Suryamitra)",4,115,185,40,20,340,"Yes","I","A","NA","Manufacturing","Technical ",60]
[97,"SGJ/Q0102","Green Jobs","Solar PV Installer - Electrical",4,65,135,40,20,240,"Yes","I","A","NA","Manufacturing","Technical ",40]
[98,"SGJ/Q0103","Green Jobs","Solar PV Installer - Civil",4,60,120,40,20,220,"Yes","I","A","NA","Manufacturing","Technical ",30]
[99,"SGJ/Q6601","Green Jobs","Wastewater Treatment Plant Technician",4,70,130,40,20,240,"Yes","III","A & B","NA","Manufacturing","Technical ",130]
[100,"HCS/Q8702","Handicrafts","Bamboo Mat Weaver",3,40,110,40,20,190,"Yes","II","A","NA","Manufacturing ","Technical ","NA"]
[101,"HCS/Q5412","Handicrafts","Handloom Weaver (Carpets)",3,50,100,40,20,190,"Yes","II","A","NA","Manufacturing ","Technical ","NA"]
[102,"HCS/Q7901","Handicrafts","Hand Rolled Agarbatti Maker",3,70,180,40,20,290,"Yes","II","A","NA","Manufacturing ","Technical ","NA"]
[103,"HCS/Q8704","Handicrafts","Bamboo Basket Maker",3,70,170,40,20,280,"Yes","II","A","NA","Manufacturing ","Technical ","NA"]
[104,"HCS/Q8002","Handicrafts","Agarbatti Packer",3,65,155,40,20,260,"Yes","II","A","NA","Manufacturing ","Technical ","NA"]
[105,"HCS/Q8705","Handicrafts","Bamboo Utility Handicraft Assembler",3,70,160,40,20,270,"Yes","II","A","NA","Manufacturing ","Technical ","NA"]
[106,"HCS/Q2802","Handicrafts","Stamping operator",4,64,136,40,20,240,"Yes","II","A","NA","Manufacturing ","Technical ","NA"]
[107,"HCS/Q2902","Handicrafts","Engraving artisan",4,85,195,40,20,320,"Yes","II","A","NA","Manufacturing ","Technical ","NA"]
[108,"HSS/Q8601","Healthcare","Front Line Health Worker ",3,110,315,40,20,465,"Yes","II","A","NA","Service","Technical",200]
[109,"HSS/Q3001","Healthcare","Vision Technician",3,110,315,40,20,465,"Yes","I","C","NA","Service","Technical",200]
[110,"HSS/Q5401","Healthcare","Pharmacy Assistant",4,110,315,40,20,465,"Yes","II","A","NA","Service","Technical",225]
[111,"HSS/Q2301","Healthcare","Emergency Medical Technician-Basic",4,100,260,40,20,400,"Yes","I","C","NA","Service","Technical",120]
[112,"HSS/Q8701","Healthcare","Diabetes Educator",4,135,225,40,20,400,"Yes","II","A","NA","Service","Technical",120]
[113,"HSS/Q5201","Healthcare","Diet Assistant",4,158,322,40,20,520,"Yes","II","A","NA","Service","Technical",180]
[114,"HSS/Q5101","Healthcare","General Duty Assistant",4,100,320,40,20,460,"Yes","II","A","NA","Service","Technical",180]
[115,"HSS/Q5102","Healthcare","Home Health Aide",4,120,240,40,20,400,"Yes","II","A","NA","Service","Technical",120]
[116,"ISC/Q1001","Iron and Steel","Fitter: Electrical Assembly",3,75,235,40,20,350,"Yes","I","A ","NA","Manufacturing","Technical",16]
[117,"ISC/Q1102","Iron and Steel","Fitter: Instrumentation ",3,70,230,40,20,340,"Yes","I","A","NA","Manufacturing","Technical",16]
[118,"ISC/Q0908","Iron and Steel","Rigger - Rigging of Heavy Material",3,70,180,40,20,290,"Yes","I","A ","NA","Manufacturing","Technical",16]
[119,"ISC/Q0909","Iron and Steel","Iron & Steel – Machinist",3,120,270,40,20,430,"Yes","I","A ","NA","Manufacturing","Technical",16]
[120,"ISC/Q0906","Iron and Steel","Bearing Maintenance",3,80,220,40,20,340,"Yes","I","A ","NA","Manufacturing","Technical",16]
[121,"ISC/Q1101","Iron and Steel","Fitter: Electronic Assembly",3,80,220,40,20,340,"Yes","I","A","NA","Manufacturing","Technical",16]
[122,"ISC/Q0905","Iron and Steel","Fitter: Leveling alignment balancing",3,100,230,40,20,370,"Yes","I","A","NA","Manufacturing","Technical",16]
[123,"ISC/Q0910","Iron and Steel","Plasma Cutter",4,68,212,40,20,320,"Yes","I","A","NA","Manufacturing","Technical",16]
[124,"ISC/Q0911","Iron and Steel","Gas Tungsten Arc Welding",4,80,300,40,20,420,"Yes","I","C","NA","Manufacturing","Technical",24]
[125,"SSC/Q2211","IT/ITes","CRM Domestic Non-Voice",4,100,300,40,20,440,"Yes","II","A","NA","Manufacturing","Technical",50]
[126,"SSC/Q2210","IT/ITes","CRM Domestic Voice",4,100,300,40,20,440,"Yes","II","A","NA","Manufacturing","Technical",50]
[127,"SSC/Q2213","IT/ITes","Domestic Biometric Data Operator",4,100,300,40,20,440,"Yes","II","A","NA","Manufacturing","Technical",50]
[128,"SSC/Q2212","IT/ITes","Domestic Data entry Operator",4,100,300,40,20,440,"Yes","II","A","NA","Service","Technical",50]
[129,"SSC/Q0110","IT/ITes","Domestic IT Helpdesk Attendant",4,100,300,40,20,440,"Yes","II","A","NA","Service","Technical",50]
[130,"SSC/Q0508","IT/ITes","Junior Software Developer",4,100,300,40,20,{"$f":"SUM(G131:G131)","v":300},"Yes","II","A","NA","Manufacturing","Technical",50]
[131,"LSS/Q2501","Leather","Stitching Operator (Footwear)",4,50,450,40,20,{"$f":"SUM(F133:H133)","v":540},"Yes","I","A ","NA","Manufacturing","Technical","40 "]
[132,"LSS/Q5501","Leather","Stitcher (Goods & Garments)",4,30,170,40,20,240,"Yes","I","A ","NA","Manufacturing","Technical",40]
[133,"LSS/Q5301 ","Leather","Cutter-Goods & Garments",4,30,170,40,20,240,"Yes","I","A ","NA","Manufacturing","Technical",40]
[134,"LSS/Q2301","Leather","Cutter- Footwear",4,40,460,40,20,540,"Yes","I","C","NA","Manufacturing","Technical"," 40"]
[135,"LSS/Q0501","Leather","Shaving Operator",4,33,167,40,20,240,"Yes","I","C","NA","Manufacturing","Technical"," 167"]
[136,"LSS/Q2401","Leather","Skiving Operator (Machine)",4,39,461,40,20,540,"Yes","I","C","NA","Manufacturing","Technical"," 40"]
[137,"LFS/Q0604","Life Sciences","Store Assistant- Life Sciences",3,130,150,40,20,320,"Yes","I","A","NA","Manufacturing","Non-Technical",72]
[138,"LFS/Q0213","Life Sciences","Fitter Mechanical- Life Sciences",3,120,140,40,20,300,"Yes","I","C","At site ","Manufacturing","Technical",100]
[139,"LFS/Q0509","Life Sciences","Lab Technician/ Assistant - Life Sciences",3,100,130,40,20,270,"Yes","I","A","NA","Manufacturing","Technical",56]
[140,"LFS/Q0401","Life Sciences","Medical Sales Representative",4,160,320,40,20,520,"Yes"," II","A","NA","Service","Technical",80]
[141,"LFS/Q0207","Life Sciences","Production/Machine Operator- Life Sciences",4,155,221,40,20,416,"Yes","I","C","At site ","Manufacturing","Technical",120]
[142,"LSC/Q2102","Logistics","Warehouse Picker",3,80,190,40,20,310,"Yes"," II","A","NA","Service","Non-Technical",30]
[143,"LSC/Q2303","Logistics","Warehouse Packer",3,80,190,40,20,310,"Yes","I","A","NA","Service","Technical",30]
[144,"LSC/Q1120","Logistics","Consignment Booking Assistant",3,80,190,40,20,310,"Yes","I","A","NA","Service","Technical",30]
[145,"LSC/Q1121","Logistics","Consignment Tracking Executive",3,80,190,40,20,310,"Yes","I","A","NA","Service","Technical",30]
[146,"LSC/Q3023","Logistics","Courier Delivery Executive",3,80,190,40,20,310,"Yes","I","A","NA","Service","Technical",30]
[147,"LSC/Q1122","Logistics","Documentation Assistant",4,80,190,40,20,310,"Yes","I","A","NA","Service","Technical",30]
[148,"LSC/Q2108","Logistics","Inventory Clerk",3,75,175,40,20,290,"Yes","I","A","NA","Service","Technical",30]
[149,"ASC/Q9707","Logistics","Forklift Operator",4,90,210,40,20,340,"Yes","I","C","NA","Service","Technical",30]
[150,"MES/Q1801","Media & Entertainment ","Makeup Artist",4,120,120,40,20,280,"Yes","II","A","NA","Service","Non-Technical",20]
[151,"MES/Q1802","Media & Entertainment ","Hairdresser",4,120,120,40,20,280,"Yes","II","A","NA","Service","Non-Technical",20]
[152,"MES/Q0401","Media & Entertainment ","Modeller ",3,120,120,40,20,280,"Yes","II","A","NA","Service","Technical",40]
[153,"MES/Q0701","Media & Entertainment ","Animator ",4,120,120,40,20,280,"Yes","I","A","NA","Service","Technical",40]
[154,"MES/Q0502","Media & Entertainment ","Character Designer",4,120,120,40,20,280,"Yes","II","A","NA","Service","Non-Technical",40]
[155,"MES/Q1401","Media & Entertainment ","Editor",4,120,120,40,20,280,"Yes","II","A","NA","Service","Technical",40]
[156,"MES/Q3504","Media & Entertainment ","Rotoartist",4,120,120,40,20,280,"Yes","II","A","NA","Service","Technical",40]
[157,"MES/Q3404","Media & Entertainment ","Sound Editor",4,120,120,40,20,280,"Yes","II","A","NA","Service","Technical",40]
[158,"MIN/Q0304","Mining","Mining - Mechanic / Fitter",3,60,150,40,20,250,"Yes","I","A","NA","Manufacturing","Technical",8]
[159,"MIN/Q0203","Mining","Mining - Wire saw Operator ",4,60,150,40,20,250,"Yes","I","A","NA","Manufacturing","Technical",8]
[160,"MIN/Q0208","Mining","Mining - Loader Operator",4,40,170,40,20,250,"Yes","I","C","NA","Manufacturing","Technical",8]
[161,"MIN/Q0205","Mining","Mining - Bulldozer Operator",4,70,170,40,20,280,"Yes","I","C","NA","Manufacturing","Technical",8]
[162,"MIN/Q0433","Mining","Mining - HEMM Mechanic",4,60,150,40,20,250,"Yes","I","C","NA","Manufacturing","Technical",8]
[163,"MIN/Q0416","Mining","Mine Electrician",4,60,200,40,20,{"$f":"SUM(F165:H165)","v":300},"Yes","I","A","NA","Manufacturing","Technical",8]
[164,"MIN/Q0423","Mining","Mine Welder",4,100,250,40,20,390,"Yes","I","A","NA","Manufacturing","Technical",8]
[165,"MIN/Q0437","Mining","Mining - Safety Operator",4,60,150,40,20,250,"Yes","I","A","NA","Manufacturing","Technical",8]
[166,"MIN/Q0428","Mining","Mining Shot Firer/Blaster",4,60,150,40,20,250,"Yes","I","C","NA","Manufacturing","Technical",8]
[167,"PCS/Q5102","Paints & Coatings ","Powder Coater",4,96,144,40,20,280,"Yes","II","A","NA","Manufacturing","Technical",4]
[168,"PWT/Q0203","People with Disability","Housekeeping Attendant (Manual Cleaning)",3,75,175,40,20,290,"Yes","II","A","NA","Service","Non-Technical",200]
[169,"PWR/Q0104","People with Disability","Retail Sales Associate ",4,140,140,40,20,320,"Yes","II","A","NA","Service","Non-Technical",140]
[170,"PWT/Q0301","People with Disability","Food & Beverage Service-Steward",4,90,210,40,20,340,"Yes","II","C","NA","Service","Non-Technical",200]
[171,"PSC/Q0104","Plumbing","Plumber General",3,120,200,40,20,360,"Yes","I","A","NA","Manufacturing","Technical",80]
[172,"PSC/Q0302","Plumbing","Plumbing Products Sales Officer",3,120,200,40,20,360,"Yes","I","A","NA","Service","Non-Technical",100]
[173,"PSC/Q0303","Plumbing","Plumbing After Sales Service",3,70,130,40,20,240,"Yes","I","A","NA","Manufacturing","Technical",50]
[174,"PSS/Q0107","Power","Consumer Energy Meter Technician",3,100,250,40,20,390,"Yes","I","A","NA","Manufacturing","Technical",200]
[175,"PSS/Q3001","Power","Assistant Electricity Meter Reader, Billing & Cash Collector",3,65,135,40,20,240,"Yes","I","A","NA","Manufacturing","Technical",108]
[176,"PSS/Q6003","Power","Assistant Technician - Street Lighting Solutions (Installation & Maintenance)",3,65,135,40,20,240,"Yes","I","A","NA","Manufacturing","Technical",108]
[177,"PSS/Q0102","Power","Distribution Lineman",4,117,233,40,20,390,"Yes","I","A","NA","Service","Technical",186]
[178,"PSS/Q3003","Power","Technician – Distribution Transformer Repair",4,120,230,40,20,390,"Yes","I","C","NA","Manufacturing","Technical",184]
[179,"PSS/Q3002","Power","Attendant Sub-Station (66/11,33/11 KV)-Power Distribution",4,120,230,40,20,390,"Yes","I","C","NA","Manufacturing","Technical",184]
[180,"RAS/Q0103","Retail","Retail Trainee Associate ",3,140,140,40,20,320,"Yes"," II","A","NA","Service","Non-Technical",140]
[181,"RAS/Q0104","Retail","Retail Sales Associate ",4,140,140,40,20,320,"Yes"," II","A","NA","Service","Non-Technical",140]
[182,"RAS/Q0604","Retail","Distributor Salesman",4,140,140,40,20,320,"Yes"," II","A","NA","Service","Non-Technical",140]
[183,"RSC/Q0831","Rubber","Junior Rubber Technician / Technical Assistant",3,140,210,40,20,390,"Yes","I","A","NA","Manufacturing","Technical",185]
[184,"RSC/Q0101","Rubber","Mill Operator",4,140,210,40,20,390,"Yes","I","C","NA","Manufacturing","Technical",155]
[185,"RSC/Q0211","Rubber","Pneumatic Tyre Moulding Operator",4,140,210,40,20,390,"Yes","I","C","NA","Manufacturing","Technical",155]
[186,"RSC/Q0205","Rubber","Compression Moulding Operator ",4,140,210,40,20,390,"Yes","I","C","NA","Manufacturing","Technical",155]
[187,"RSC/Q0207","Rubber","Injection Moulding Operator ",4,140,210,40,20,390,"Yes","I","C","NA","Manufacturing","Technical",155]
[188,"RSC/Q0108","Rubber","Material Handling and Storage Operator",4,140,210,40,20,390,"Yes","I","A","NA","Manufacturing","Technical",130]
[189,"RSC/Q6005","Rubber","Rubber Nursery Worker - General ",4,80,120,40,20,240,"Yes","II","A","NA","Service","Technical",105]
[190,"RSC/Q6107","Rubber","General Worker - Rubber Plantation",4,80,120,40,20,240,"Yes","II","A","NA","Service","Technical",115]
[191,"RSC/Q6103","Rubber","Latex Harvest Technician (Tapper)",4,80,120,40,20,240,"Yes","II","A ","NA","Service","Technical",100]
[192,"SSS/Q0101 ","Security","Unarmed Security Guard",4,80,80,40,20,200,"Yes","II","A","NA","Service","Non-Technical",8]
[193,"SPF/Q1102","Sports","Fitness Trainer ",4,60,190,40,20,290,"Yes","I","A","NA","Service","NonTechnical",50]
[194,"SPF/Q1103","Sports","Sports Masseur",4,50,150,40,20,240,"Yes","II","A","NA","Service","NonTechnical",50]
[195,"SPF/Q1104","Sports","Life Guard-Pool & Beach ",4,60,190,40,20,{"$f":"SUM(F197:H197)","v":290},"Yes","II","A","NA","Service","NonTechnical",60]
[196,"TEL/Q2100","Telecom","Distributer Sales Rep",4,80,120,40,20,240,"Yes","II","A","NA","Service","Non-Technical",40]
[197,"TEL/Q0201","Telecom","Sales Executive Broadband",4,80,120,40,20,240,"Yes","II","A","NA","Service","Non-Technical",40]
[198,"TEL/Q0100","Telecom","Customer Care Executive – (Telecom Call Centre)",4,80,120,40,20,240,"Yes","II","A","NA","Service","Non-Technical",60]
[199,"TEL/Q2101","Telecom","Telecom -In-store promoter",4,80,120,40,20,240,"Yes","II","A","NA","Service","Non-Technical",40]
[200,"TEL/Q0200","Telecom","Field Sales Executive - Telecom Plans and Services",4,80,120,40,20,240,"Yes","II","A","NA","Service","Non-Technical",40]
[201,"TEL/Q2201","Telecom","Handset Repair Engineer ",4,120,180,40,20,340,"Yes","II","A","NA","Service","Technical",60]
[202,"TEL/Q4100","Telecom","Telecom- Tower Technician",4,120,180,40,20,340,"Yes","I","A","NA","Service","Technical",60]
[203,"TEL/Q0101","Telecom","Costomer Care Executive (Relationship Centre)",4,80,120,40,20,240,"Yes","II","A","NA","Service","Non-Technical",40]
[204,"TEL/Q6401","Telecom","Optical Fibre Technician",4,150,150,40,20,340,"Yes","I","A","NA","Service","Technical",60]
[205,"TEL/Q2300","Telecom","Telecom Terminal Equipment Application Developer (Android) ",4,80,170,40,20,290,"Yes","II","A","NA","Service","Technical","NA"]
[206,"TSC/Q0202","Textiles & Handloom","Ring Frame Doffer",3,100,200,40,20,340,"Yes","I","C","NA","Manufacturing","Technical",200]
[207,"TSC/Q7302","Textiles & Handloom","Warper",3,110,190,40,20,340,"Yes","I","A","NA","Manufacturing","Technical",190]
[208,"TSC/Q0301","Textiles & Handloom","Autoconer Tenter",4,100,200,40,20,340,"Yes","I","C","NA","Manufacturing","Technical",200]
[209,"TSC/Q0201","Textiles & Handloom","Ring Frame Tenter",4,100,200,40,20,340,"Yes","I","C","NA","Manufacturing","Technical",200]
[210,"TSC/Q5401","Textiles & Handloom","Stenter Machine Operator",4,75,225,40,20,340,"Yes","I","C","NA","Manufacturing","Technical",225]
[211,"TSC/Q7201","Textiles & Handloom","Hank Dyer",4,110,190,40,20,340,"Yes","I","A","NA","Manufacturing","Technical",190]
[212,"TSC/Q7303","Textiles & Handloom","Two Shaft Handloom Weaver",4,100,200,40,20,340,"Yes","I","A","NA","Manufacturing","Technical",200]
[213,"THC/Q0203\\","Tourism and Hospitality","House Keeping Attendant (Manual Cleaning) ",3,75,175,40,20,290,"Yes","II","A","NA","Service","Non-Technical",200]
[214,"THC/Q2902","Tourism and Hospitality","Home delivery boy ",3,50,150,40,20,240,"Yes","II","A","NA","Service","Non-Technical",200]
[215,"THC/Q2903","Tourism and Hospitality","Counter Sales Executive",4,70,170,40,20,280,"Yes","II","C","NA","Service","Non-Technical",200]
[216,"THC/Q0301","Tourism and Hospitality","F & B Service: Steward",4,90,210,40,20,340,"Yes","II","C","NA","Service","Non-Technical",200]
[217,"THC/Q0202","Tourism and Hospitality","Room Attendant ",4,90,210,40,20,340,"Yes","II","A","NA","Service","Non-Technical",200]
[218,"THC/Q0102","Tourism and Hospitality","Front Office Associate",4,110,170,40,20,320,"Yes","II","A","NA","Service","Non-Technical",200]
[219,"THC/Q3006","Tourism and Hospitality","Multi Cuisine Cook ",4,200,300,40,20,540,"Yes","I","C","NA","Manufacturing","Technical",400]
[220,"THC/Q4404","Tourism and Hospitality","Travel Consultant",4,70,160,40,20,270,"Yes","III","A","NA","Service","Non-Technical",200]
[221,"THSC/Q3007","Tourism and Hospitality","Street Food Vendor",4,116,174,40,20,330,"Yes","II","A","NA","Manufacturing","Non-Technical","NA"]

{"sheet":"Ref. Doc","index":9,"n_rows":11,"n_cols":3,"rows_kept":11,"cut":false,"hidden":false,"merged":[[181,11,189,11],[181,12,189,12],[9,1,9,3],[10,1,13,3]]}
["Reference Document"]
["A","Special Project Guidelines","https://goo.gl/dFyjAK"]
["B","PMKVY Job role list","http://smart.nsdcindia.org/knowledge_bank.aspx#jobrolelist\n\n"]
["C","Outside PMKVY Job role list","https://goo.gl/SHiRaC"]
["D","District Category","https://goo.gl/LtGKJP"]
["E","Other PMKVY Guidelines","https://goo.gl/Hi2WBb"]
["F","SMART Center Accreditation ","https://smart.nsdcindia.org/accreditation.aspx"]
["G","SMART Center Affiliation","https://smart.nsdcindia.org/affiliation.aspx"]
[]
[null,"Instructions for Sending the Project Application Form"]
[null,"Email Subject: SP-PAF_Sub [PAN Number] [Organisation Name as per Pan Card]\nEg: SP-PAF_Sub AAAAA8888A Sample Organisation Pvt. Ltd. \nPAF to be sent on Email ID : specialprojectpmkvy@nsdcindia.org & pmkvyspecialprojects@gmail.com \nAttachement : All the mandatory document should be in zip format. "]